bitfinex/quotes_ETHUSD_20250924
["timestamp","ask_amount","ask_price","bid_price","bid_amount"]
[1758728015255,0.51173448,4196.7,4196.6,0.6993]
[1758728015580,0.51173448,4196.9,4196.6,3.08217912]
[1758728015788,0.51173448,4197.2,4196.7,3.10393594]
[1758728016083,1.985,4197.7,4196.7,3.10395284]
[1758728016084,0.1184,4196.8,4196.7,3.10395284]
[1758728016453,0.1184,4196.8,4196.7,0.6973]
[1758728016859,0.1184,4196.8,4196.7,3.0801246]
[1758728017254,0.1184,4196.8,4196.7,0.6973]
[1758728017468,0.1184,4196.8,4196.7,3.0801246]
[1758728017972,0.1184,4196.8,4196.7,3.10395284]
[1758728018144,0.1184,4196.8,4196.7,3.0801246]
[1758728018340,0.51173448,4197.4,4196.9,2.38270128]
[1758728018546,0.1184,4197.3,4197.0,0.6973]
[1758728018849,0.1184,4197.3,4197.1,3.07988021]
[1758728019246,0.1184,4197.3,4197.2,0.6973]
[1758728021383,0.1184,4197.3,4197.2,0.2418]
[1758728021889,8.10657592,4197.3,4196.8,0.238]
[1758728022089,2.38242801,4197.4,4196.8,0.6953]
[1758728022090,0.51173448,4197.2,4196.8,0.6953]
[1758728022249,2.38249259,4197.3,4196.8,0.6953]
[1758728022449,2.38254288,4197.2,4196.8,0.6953]
[1758728022680,2.61604288,4197.2,4196.6,0.002]
[1758728022886,3.12777736,4197.2,4196.6,0.002]
[1758728023086,10.48923191,4197.0,4196.6,0.002]
[1758728023289,0.51173448,4196.9,4196.6,0.002]
[1758728023462,0.74523448,4196.9,4196.6,0.002]
[1758728025198,0.51173448,4196.9,4196.6,0.002]
[1758728025360,10.48940052,4196.7,4196.6,0.002]
[1758728025559,4.3005641,4196.7,4196.6,0.002]
[1758728025981,4.5340641,4196.7,4196.6,0.002]
[1758728026296,1.9177395,4196.7,4196.6,0.002]
[1758728026495,2.89455908,4196.7,4196.6,0.002]
[1758728027201,2.89375908,4196.7,4196.6,0.002]
[1758728027574,3.12725908,4196.7,4196.6,0.002]
[1758728027777,3.56995908,4196.7,4196.6,0.002]
[1758728027968,4.20962539,4196.7,4196.6,0.002]
[1758728028168,5.48792981,4196.7,4196.6,0.002]
[1758728028383,5.72142981,4196.7,4196.6,0.002]
[1758728028707,10.15812981,4196.7,4196.6,0.002]
[1758728029703,9.48192981,4196.7,4196.6,0.002]
[1758728029859,17.82200573,4196.7,4196.6,0.002]
[1758728030302,9.71542981,4196.7,4196.6,0.002]
[1758728030459,7.09910521,4196.7,4196.6,0.002]
[1758728030690,5.14460079,4196.7,4196.6,0.002]
[1758728030926,6.88775908,4196.7,4196.6,0.002]
[1758728031191,5.14460079,4196.7,4196.6,0.002]
[1758728031506,4.50493448,4196.7,4196.6,0.002]
[1758728031689,3.994,4196.7,4196.6,0.002]
[1758728031904,1.29682966,4197.1,4196.6,0.6973]
[1758728031905,0.63966631,4197.0,4196.6,0.6973]
[1758728032143,3.0223316,4197.0,4196.6,0.002]
[1758728032501,0.63966631,4197.0,4196.6,0.002]
[1758728034021,7.69258488,4196.9,4196.6,0.002]
[1758728034213,3.02247161,4196.8,4196.6,0.002]
[1758728034417,3.46517161,4196.8,4196.6,0.002]
[1758728034625,6.6103246,4196.7,4196.6,0.002]
[1758728034811,4.6702,4196.7,4196.6,0.002]
[1758728035145,5.30986631,4196.7,4196.6,0.002]
[1758728035454,4.2275,4196.7,4196.6,0.002]
[1758728035746,3.994,4196.7,4196.6,0.002]
[1758728036629,4.63366631,4196.9,4196.6,0.002]
[1758728036829,0.63966631,4197.0,4196.6,0.6973]
[1758728037028,0.63966631,4197.0,4196.6,0.002]
[1758728037245,0.63966631,4197.0,4196.7,0.6953]
[1758728037441,0.63966631,4197.0,4196.7,0.238]
[1758728037762,0.63966631,4197.0,4196.6,0.02582881]
[1758728037763,0.1184,4196.7,4196.6,0.02582881]
[1758728038352,0.1184,4196.7,4196.6,0.002]
[1758728038559,0.1184,4196.7,4196.6,0.24]
[1758728039052,0.1184,4196.7,4196.6,0.6973]
[1758728039261,0.1184,4196.7,4196.6,3.08018138]
[1758728039422,0.1184,4196.7,4196.6,0.002]
[1758728039818,3.59335452,4196.7,4196.6,0.002]
[1758728040047,4.10636875,4196.7,4196.6,0.002]
[1758728040560,3.64166875,4196.7,4196.6,0.002]
[1758728040868,4.10636875,4196.7,4196.6,0.002]
[1758728041418,5.38643803,4196.7,4196.6,0.002]
[1758728041991,4.10636875,4196.7,4196.6,0.002]
[1758728045658,4.10736875,4196.7,4196.6,0.002]
[1758728046660,3.40396875,4196.7,4196.6,0.002]
[1758728047170,3.64266875,4196.7,4196.6,0.002]
[1758728047588,4.10736875,4196.7,4196.6,0.002]
[1758728048486,4.96212959,4196.7,4196.6,0.002]
[1758728048683,4.10736875,4196.7,4196.6,0.002]
[1758728050311,7.39596875,4196.7,4196.6,0.4432]
[1758728050512,7.00723883,4196.7,4196.6,0.002]
[1758728050807,5.26573103,4196.7,4196.6,0.6818]
[1758728051008,5.26573103,4196.7,4196.6,0.2406]
[1758728051193,5.26573103,4196.7,4196.6,0.6818]
[1758728051394,7.00723883,4196.7,4196.6,0.6818]
[1758728051621,7.00723883,4196.7,4196.6,0.2406]
[1758728051788,7.00723883,4196.7,4196.6,0.002]
[1758728051789,0.63241423,4196.7,4196.6,0.002]
[1758728052106,4.62441423,4196.7,4196.6,0.002]
[1758728052319,7.00723883,4196.7,4196.6,0.002]
[1758728052689,4.62441423,4196.7,4196.6,0.002]
[1758728053082,4.62441423,4196.7,4196.6,0.6962]
[1758728053279,7.00723883,4196.7,4196.6,0.002]
[1758728053485,4.62441423,4196.7,4196.6,0.002]
[1758728053883,4.62441423,4196.7,4196.6,0.6962]
[1758728054306,4.62361423,4196.7,4196.6,0.6962]
[1758728056114,7.00643883,4196.7,4196.6,0.6962]
[1758728056317,7.00643883,4196.7,4196.6,0.002]
[1758728056817,4.62361423,4196.7,4196.6,0.002]
[1758728057001,0.63161423,4196.7,4196.6,0.6962]
[1758728057206,1.27373499,4196.7,4196.6,0.6962]
[1758728057606,1.27373499,4196.7,4196.6,0.002]
[1758728057994,3.65655959,4196.7,4196.6,0.002]
[1758728058194,3.01443883,4196.7,4196.6,0.002]
[1758728058391,1.27346313,4196.7,4196.6,0.002]
[1758728058807,0.63161423,4196.7,4196.6,0.002]
[1758728059118,1.27333321,4196.7,4196.6,0.002]
[1758728059321,3.65615781,4196.7,4196.6,0.002]
[1758728059995,1.27333321,4196.7,4196.6,0.002]
[1758728060195,1.27333321,4196.7,4196.6,0.2282]
[1758728060428,1.27333321,4196.7,4196.6,0.95970439]
[1758728060632,0.63161423,4196.7,4196.6,0.6962]
[1758728061119,0.63161423,4196.7,4196.6,0.002]
[1758728062417,3.01443883,4196.7,4196.6,0.002]
[1758728062626,3.67513883,4196.7,4196.6,0.002]
[1758728064590,4.95520811,4196.7,4196.6,0.002]
[1758728064798,5.74563709,4196.7,4196.6,0.002]
[1758728065904,7.02816599,4196.7,4196.6,0.002]
[1758728066292,5.74563709,4196.7,4196.6,0.002]
[1758728066753,7.02810078,4196.7,4196.6,0.002]
[1758728068396,5.74563709,4196.7,4196.6,0.002]
[1758728069216,7.02810078,4196.7,4196.6,0.002]
[1758728069840,5.08493709,4196.7,4196.6,0.002]
[1758728070644,5.31363709,4196.7,4196.6,0.002]
[1758728070816,5.74563709,4196.7,4196.6,0.002]
[1758728072328,5.31363709,4196.7,4196.6,0.002]
[1758728073338,5.08493709,4196.7,4196.6,0.002]
[1758728074216,5.31363709,4196.7,4196.6,0.002]
[1758728074737,5.74563709,4196.7,4196.6,0.002]
[1758728074908,7.02931634,4196.7,4196.6,0.002]
[1758728075929,6.36870935,4196.7,4196.6,0.002]
[1758728076126,5.74563709,4196.7,4196.6,0.002]
[1758728076333,7.73063709,4196.7,4196.6,0.002]
[1758728078243,2.38305173,4196.3,4196.2,0.002]
[1758728078418,16.87899137,4196.3,4196.2,0.002]
[1758728078618,17.53969137,4196.3,4196.2,0.002]
[1758728078848,13.55569137,4196.3,4196.2,0.002]
[1758728079042,13.78189137,4196.3,4196.2,0.002]
[1758728079244,16.00689137,4196.3,4196.2,0.002]
[1758728081454,16.00609137,4196.3,4196.2,0.002]
[1758728082756,6.45538593,4196.3,4196.2,0.002]
[1758728082950,6.22918593,4196.3,4196.2,0.002]
[1758728083379,5.18166905,4196.3,4196.2,0.002]
[1758728083540,6.46268593,4196.3,4196.2,0.002]
[1758728083981,6.91198593,4196.3,4196.2,0.002]
[1758728086484,6.42296905,4196.3,4196.2,0.002]
[1758728087181,9.51853605,4196.3,4196.2,0.002]
[1758728089649,9.06923605,4196.3,4196.2,0.002]
[1758728089992,8.04373605,4196.3,4196.2,0.002]
[1758728090184,9.32475133,4196.3,4196.2,0.002]
[1758728090685,7.27184824,4196.3,4196.2,0.7057]
[1758728090905,2.99083296,4196.3,4196.2,0.7057]
[1758728091206,2.89526596,4196.3,4196.2,0.7057]
[1758728091396,4.32826596,4196.3,4196.2,0.7057]
[1758728091710,3.74962538,4196.3,4196.2,0.7057]
[1758728093171,2.89526596,4196.3,4196.2,0.002]
[1758728093370,3.74962538,4196.3,4196.2,0.7057]
[1758728094419,3.74962538,4196.3,4196.2,0.002]
[1758728094975,3.74962538,4196.3,4196.2,0.7057]
[1758728095481,3.75042538,4196.3,4196.2,0.7057]
[1758728096719,0.51301423,4196.3,4196.2,0.7057]
[1758728097073,2.89606596,4196.3,4196.2,0.7057]
[1758728098007,0.51301423,4196.3,4196.2,0.7057]
[1758728098385,1.15435765,4196.3,4196.2,0.7057]
[1758728098584,0.51301423,4196.3,4196.2,0.7057]
[1758728099510,0.51301423,4196.4,4196.2,0.7057]
[1758728099707,0.51301423,4196.4,4196.2,0.002]
[1758728099877,2.89606596,4196.3,4196.2,0.002]
[1758728100295,3.53740938,4196.3,4196.2,0.002]
[1758728100576,1.15435765,4196.3,4196.2,0.6921]
[1758728100971,3.53740938,4196.3,4196.2,0.002]
[1758728101194,3.77700938,4196.3,4196.2,0.002]
[1758728101400,3.53740938,4196.3,4196.2,0.002]
[1758728101706,1.15435765,4196.3,4196.2,0.6921]
[1758728102012,0.64134342,4196.4,4196.2,0.6921]
[1758728102215,0.1184,4196.4,4196.3,0.02383051]
[1758728102402,0.1184,4196.4,4196.3,2.40688224]
[1758728102577,0.1184,4196.4,4196.3,2.38305173]
[1758728102775,0.1184,4196.4,4196.3,3.07315173]
[1758728103308,0.001,4196.7,4196.3,3.07315173]
[1758728103309,0.001,4196.7,4196.6,2.38288138]
[1758728103675,0.001,4196.7,4196.6,3.07298138]
[1758728104511,0.001,4196.7,4196.6,3.09681019]
[1758728104708,0.001,4196.7,4196.6,3.07298138]
[1758728104890,0.001,4196.7,4196.6,0.6901]
[1758728105409,0.001,4196.7,4196.4,0.4517]
[1758728105590,0.001,4196.7,4196.4,0.6901]
[1758728105591,0.1184,4196.6,4196.4,0.6901]
[1758728106029,0.1184,4196.6,4196.5,0.6901]
[1758728107152,0.1184,4196.6,4196.5,3.07303816]
[1758728107317,0.1184,4196.6,4196.5,0.6901]
[1758728107736,0.1184,4196.6,4196.5,0.2384]
[1758728108764,0.1176,4196.6,4196.5,0.2384]
[1758728109261,0.1176,4196.6,4196.3,0.05]
[1758728109574,2.38383637,4196.7,4196.3,0.05]
[1758728109762,2.38288882,4196.6,4196.3,0.05]
[1758728110051,0.001,4196.7,4196.3,0.05]
[1758728110052,2.38384134,4196.7,4196.3,0.05]
[1758728110226,0.001,4196.7,4196.3,0.05]
[1758728110747,0.001,4196.7,4196.4,0.6901]
[1758728111250,0.001,4196.7,4196.5,0.6901]
[1758728111650,0.001,4196.7,4196.6,0.6686]
[1758728112153,0.001,4196.7,4196.6,3.07531019]
[1758728112450,0.001,4196.7,4196.6,0.69242881]
[1758728112654,0.001,4196.7,4196.6,3.07531019]
[1758728112958,0.001,4196.7,4196.6,0.6686]
[1758728113342,0.001,4196.7,4196.3,0.05]
[1758728113547,0.001,4196.7,4196.4,0.2309]
[1758728113747,0.001,4196.7,4196.3,0.05]
[1758728114470,0.1184,4196.4,4196.3,0.7186]
[1758728114872,0.1184,4196.4,4196.3,3.10165173]
[1758728115178,0.1184,4196.4,4196.3,0.05]
[1758728115179,2.50139494,4196.4,4196.3,0.05]
[1758728115378,2.72699494,4196.4,4196.3,0.05]
[1758728115739,3.19659494,4196.4,4196.3,0.05]
[1758728116575,3.156215,4196.4,4196.3,0.05]
[1758728117244,2.686615,4196.4,4196.3,0.05]
[1758728117445,0.07802006,4196.4,4196.3,0.05]
[1758728117943,2.461015,4196.4,4196.3,0.05]
[1758728118143,3.156215,4196.4,4196.3,0.05]
[1758728118360,2.686615,4196.4,4196.3,0.05]
[1758728118640,3.156215,4196.4,4196.3,0.05]
[1758728118839,0.30362006,4196.4,4196.3,0.05]
[1758728119046,0.07802006,4196.4,4196.3,0.05]
[1758728119780,0.07802006,4196.4,4196.3,0.2809]
[1758728120079,2.461015,4196.4,4196.3,0.05]
[1758728120573,3.156215,4196.4,4196.3,0.05]
[1758728120741,2.686615,4196.4,4196.3,0.05]
[1758728122072,2.606615,4196.4,4196.3,0.05]
[1758728123375,4.23057265,4196.4,4196.3,0.05]
[1758728124177,3.76097265,4196.4,4196.3,0.05]
[1758728124566,3.76097265,4196.4,4196.3,0.052]
[1758728125391,3.76197265,4196.4,4196.3,0.052]
[1758728126191,3.53637265,4196.4,4196.3,0.052]
[1758728126600,0.51401423,4196.4,4196.3,0.052]
[1758728126965,1.15480146,4196.4,4196.3,0.052]
[1758728127473,3.5377964,4196.4,4196.3,0.052]
[1758728128794,3.7633964,4196.4,4196.3,0.052]
[1758728128997,3.5377964,4196.4,4196.3,0.052]
[1758728129201,4.2329964,4196.4,4196.3,0.052]
[1758728129403,12.34051006,4196.4,4196.3,0.052]
[1758728129567,14.11195846,4196.4,4196.3,0.052]
[1758728130169,13.25759904,4196.4,4196.3,0.052]
[1758728130698,4.45488538,4196.4,4196.3,0.052]
[1758728130879,2.89700917,4196.4,4196.3,0.052]
[1758728131077,3.12260917,4196.4,4196.3,0.052]
[1758728131502,2.89700917,4196.4,4196.3,0.052]
[1758728133404,11.69972283,4196.4,4196.3,0.052]
[1758728136039,0.001,4196.4,4196.3,0.7206]
[1758728136393,0.001,4196.4,4196.3,0.052]
[1758728136817,3.0245928,4196.4,4196.3,0.052]
[1758728137491,2.38399494,4196.4,4196.3,0.052]
[1758728137699,4.45217019,4196.4,4196.3,0.052]
[1758728137888,3.75697019,4196.4,4196.3,0.052]
[1758728138120,3.07919494,4196.4,4196.3,0.052]
[1758728138331,2.60959494,4196.4,4196.3,0.052]
[1758728138492,2.38399494,4196.4,4196.3,0.052]
[1758728138930,0.001,4196.4,4196.3,0.052]
[1758728139146,0.001,4196.4,4196.3,0.7206]
[1758728139346,0.001,4196.4,4196.3,0.052]
[1758728139659,0.64191618,4196.4,4196.3,0.7206]
[1758728139796,0.1194,4196.4,4196.3,0.7206]
[1758728139999,0.1194,4196.4,4196.3,3.12748224]
[1758728140498,0.001,4196.4,4196.3,3.12748224]
[1758728141239,0.001,4196.4,4196.3,0.7206]
[1758728142118,0.001,4196.4,4196.3,0.052]
[1758728142325,0.001,4196.4,4196.3,0.2797]
[1758728142620,0.001,4196.4,4196.3,0.7117]
[1758728142999,0.001,4196.4,4196.3,3.09475173]
[1758728143523,0.001,4196.4,4196.3,3.11858224]
[1758728143923,0.001,4196.4,4196.3,3.21315173]
[1758728144706,0.001,4196.4,4196.3,6.21315173]
[1758728144903,0.001,4196.4,4196.3,7.00515173]
[1758728149161,0.001,4196.9,4196.6,0.792]
[1758728149326,0.001,4197.1,4196.8,17.00702732]
[1758728149519,0.001,4197.1,4197.0,2.38265427]
[1758728149735,0.001,4197.1,4197.0,5.38265427]
[1758728149942,0.001,4197.1,4197.0,6.04235427]
[1758728150261,0.001,4197.1,4197.0,6.13783482]
[1758728150755,0.001,4197.1,4197.0,15.50620071]
[1758728152058,0.001,4197.1,4197.0,16.29820071]
[1758728152259,0.001,4197.1,4197.0,6.92983482]
[1758728152645,0.001,4197.1,4197.0,6.13783482]
[1758728153326,0.001,4197.1,4197.0,5.47813482]
[1758728153527,0.001,4197.1,4197.0,15.50620071]
[1758728155368,0.001,4197.1,4197.0,5.47813482]
[1758728158030,0.001,4197.1,4197.0,6.13783482]
[1758728158426,0.001,4197.1,4197.0,15.50620071]
[1758728160705,0.001,4197.1,4197.0,16.29820071]
[1758728161606,0.001,4197.2,4197.1,6.1745975]
[1758728161759,0.001,4197.2,4197.1,6.4120975]
[1758728161949,0.001,4197.2,4197.1,6.8715975]
[1758728162157,0.021,4198.9,4197.6,2.38226243]
[1758728162397,0.021,4198.9,4198.3,2.38191649]
[1758728162606,0.021,4198.9,4198.3,5.40573565]
[1758728162810,0.021,4198.9,4198.3,6.19731649]
[1758728163012,0.0002,4198.4,4198.3,6.19731649]
[1758728165069,0.0002,4198.4,4198.3,5.50031649]
[1758728165682,0.7222,4198.4,4198.3,5.50031649]
[1758728166055,0.2477,4198.4,4198.3,5.50031649]
[1758728166257,0.0002,4198.4,4198.3,5.50031649]
[1758728166461,0.0002,4198.4,4198.3,2.50031649]
[1758728169685,0.0002,4198.4,4198.3,6.19731649]
[1758728170964,0.0002,4198.4,4198.3,6.98931649]
[1758728172202,0.0002,4198.4,4198.3,6.96411649]
[1758728173306,0.0002,4198.4,4198.3,6.29231649]
[1758728174472,0.0002,4198.4,4198.3,5.50031649]
[1758728174680,0.7017,4198.4,4198.3,2.50031649]
[1758728176171,0.2314,4198.4,4198.3,2.50031649]
[1758728176373,0.0002,4198.4,4198.3,2.50031649]
[1758728178075,0.0002,4198.4,4198.3,5.50031649]
[1758728178306,0.2314,4198.4,4198.3,5.50031649]
[1758728178611,0.0002,4198.4,4198.3,5.50031649]
[1758728178823,0.0002,4198.4,4198.3,6.18291649]
[1758728179618,0.0002,4198.4,4198.3,5.50031649]
[1758728181134,0.2314,4198.4,4198.3,5.50031649]
[1758728181891,0.0002,4198.4,4198.3,5.50031649]
[1758728182212,0.2314,4198.4,4198.3,5.50231649]
[1758728182401,0.7017,4198.4,4198.3,5.50231649]
[1758728182732,0.2314,4198.4,4198.3,5.50231649]
[1758728182909,0.0002,4198.4,4198.3,5.50231649]
[1758728187093,0.0002,4198.4,4198.3,6.18491649]
[1758728187300,0.0002,4198.4,4198.3,6.97691649]
[1758728189348,0.0002,4198.4,4198.3,6.85851649]
[1758728190050,0.0204,4198.9,4198.8,3.17363284]
[1758728190508,0.0204,4198.9,4198.8,6.17363284]
[1758728190699,0.0204,4198.9,4198.8,6.85623284]
[1758728190907,1e-08,4198.9,4198.8,6.85623284]
[1758728193203,1e-08,4198.9,4198.8,6.42193284]
[1758728193420,1e-08,4198.9,4198.8,6.85623284]
[1758728193622,1e-08,4198.9,4198.8,6.17363284]
[1758728195753,1e-08,4198.9,4198.8,6.85623284]
[1758728197642,1e-08,4198.9,4198.8,6.42193284]
[1758728197847,1e-08,4198.9,4198.8,6.17363284]
[1758728198668,0.23120001,4198.9,4198.8,5.38163284]
[1758728198943,0.23120001,4198.9,4198.8,2.38163284]
[1758728198944,0.70150001,4198.9,4198.8,2.38163284]
[1758728199365,0.70150001,4198.9,4198.8,2.50003284]
[1758728200153,0.70150001,4198.9,4198.8,2.50203284]
[1758728200457,1e-08,4198.9,4198.8,2.50203284]
[1758728200615,0.00100001,4198.9,4198.8,2.50203284]
[1758728200812,0.23220001,4198.9,4198.8,2.50203284]
[1758728202226,0.67370001,4198.9,4198.8,2.50203284]
[1758728208757,0.22820001,4198.9,4198.8,2.50203284]
[1758728208950,0.00100001,4198.9,4198.8,2.50203284]
[1758728210171,0.00100001,4198.9,4198.8,2.52584916]
[1758728210454,0.00100001,4198.9,4198.8,3.20184916]
[1758728210662,0.00100001,4198.9,4198.8,14.96739189]
[1758728210873,0.00100001,4198.9,4198.8,15.06197557]
[1758728211228,0.00100001,4198.9,4198.8,6.97003284]
[1758728211563,0.00100001,4198.9,4198.8,15.06197557]
[1758728212148,0.00100001,4198.9,4198.8,6.77312488]
[1758728212363,0.00100001,4198.9,4198.8,7.44912488]
[1758728215031,0.00100001,4198.9,4198.8,6.77312488]
[1758728215428,0.00100001,4198.9,4198.8,7.44912488]
[1758728216930,0.00100001,4198.9,4198.8,6.97003284]
[1758728217132,0.00020001,4198.9,4198.8,6.97003284]
[1758728217630,0.00020001,4198.9,4198.8,6.29403284]
[1758728220266,0.68910001,4198.9,4198.8,5.50203284]
[1758728220431,0.23470001,4198.9,4198.8,5.50203284]
[1758728220960,0.00020001,4198.9,4198.8,5.50203284]
[1758728221863,0.00020001,4198.9,4198.8,14.25847557]
[1758728222461,0.00020001,4198.9,4198.8,5.50203284]
[1758728222784,0.68910001,4198.9,4198.8,5.50203284]
[1758728223454,0.23470001,4198.9,4198.8,5.50203284]
[1758728223766,0.00020001,4198.9,4198.8,5.50203284]
[1758728225180,0.00020001,4198.9,4198.8,6.16653284]
[1758728225380,0.00020001,4198.9,4198.8,10.83463284]
[1758728225583,0.00020001,4198.9,4198.8,11.26853284]
[1758728229883,0.00020001,4198.9,4198.8,10.60403284]
[1758728230060,0.00020001,4198.9,4198.8,18.69597557]
[1758728230474,0.68910001,4198.9,4198.8,9.81203284]
[1758728231195,0.68910001,4198.9,4198.8,2.50203284]
[1758728231552,0.00020001,4198.9,4198.8,10.61779189]
[1758728231760,0.00020001,4198.9,4198.8,11.62917557]
[1758728231994,0.00020001,4198.9,4198.8,15.08987557]
[1758728237543,0.001,4200.0,4199.5,3.17323586]
[1758728237848,0.001,4200.0,4199.5,14.28899094]
[1758728238051,0.001,4200.0,4199.5,14.26517859]
[1758728238251,0.2623,4199.9,4199.5,14.26517859]
[1758728238437,0.2623,4199.9,4199.5,14.36060902]
[1758728238641,0.02,4199.9,4199.5,14.36060902]
[1758728238842,0.2433,4199.8,4199.5,14.36060902]
[1758728239157,0.001,4199.8,4199.5,14.36060902]
[1758728239349,0.2433,4199.6,4199.5,6.26866629]
[1758728239528,0.7,4199.6,4199.5,6.26866629]
[1758728240727,0.2433,4199.6,4199.5,14.36060902]
[1758728241133,0.001,4199.6,4199.5,14.36060902]
[1758728241357,0.2433,4199.6,4199.5,14.36060902]
[1758728242743,0.7,4199.6,4199.5,2.47666629]
[1758728243346,0.7,4199.6,4199.5,2.38123586]
[1758728243982,0.7,4199.6,4199.1,5.01]
[1758728244292,0.6982,4199.5,4199.1,2.38146064]
[1758728244589,0.6982,4199.5,4198.8,0.002]
[1758728244590,9.213357,4199.4,4198.8,0.002]
[1758728244751,0.51175252,4199.3,4198.8,0.002]
[1758728245278,0.2423,4199.2,4198.8,2.38359386]
[1758728245481,0.2423,4199.1,4198.8,2.38359386]
[1758728245637,0.51175252,4199.3,4198.8,2.38359386]
[1758728245840,1.4287063,4199.2,4198.8,0.002]
[1758728246253,8.54864273,4199.1,4198.8,0.002]
[1758728246783,0.2423,4199.0,4198.8,2.38360599]
[1758728246949,0.699,4198.9,4198.8,0.002]
[1758728248147,0.699,4198.9,4198.8,2.38363284]
[1758728248543,0.699,4198.9,4198.8,0.002]
[1758728248785,0.699,4198.9,4198.8,2.38363284]
[1758728249753,0.1184,4199.0,4198.9,2.38157612]
[1758728249956,0.2423,4199.2,4199.1,2.38146269]
[1758728250350,0.1184,4199.4,4199.2,2.38139012]
[1758728250551,0.4567,4199.3,4198.8,0.002]
[1758728250896,0.699,4199.3,4198.8,2.38358257]
[1758728251080,0.699,4199.2,4199.1,2.38145274]
[1758728252286,0.1184,4199.4,4199.3,2.38134927]
[1758728252654,0.5751,4199.4,4199.3,2.38134927]
[1758728253072,0.8174,4199.4,4199.1,2.38142517]
[1758728253279,0.699,4199.3,4199.2,2.38140598]
[1758728254498,0.699,4199.3,4199.1,2.38144576]
[1758728254684,0.4567,4199.3,4199.1,2.38144576]
[1758728254869,0.2423,4199.2,4199.1,2.38144576]
[1758728257071,0.5751,4199.4,4199.3,2.38134927]
[1758728257270,0.1184,4199.4,4199.3,2.38134927]
[1758728257472,0.1194,4199.6,4199.4,2.38123926]
[1758728257695,0.1194,4199.6,4198.9,0.3616]
[1758728258094,0.1194,4199.6,4199.5,2.38123586]
[1758728258095,0.001,4199.6,4199.5,2.38123586]
[1758728258368,0.001,4199.6,4199.5,3.10894821]
[1758728258793,0.001,4199.6,4199.5,3.22734821]
[1758728258990,0.001,4199.6,4199.5,3.20353586]
[1758728260313,0.001,4199.6,4199.5,3.22734821]
[1758728261005,0.001,4199.6,4199.5,6.22734821]
[1758728261207,0.001,4199.6,4199.5,6.20353586]
[1758728261704,0.001,4199.6,4199.5,6.99553586]
[1758728264011,0.001,4199.6,4199.5,14.96507859]
[1758728264325,0.001,4199.6,4199.5,15.08347859]
[1758728265029,0.001,4199.6,4199.5,15.55009225]
[1758728265836,0.001,4199.8,4199.5,15.55009225]
[1758728265837,1e-08,4199.9,4199.8,11.26500849]
[1758728266139,1e-08,4199.9,4199.8,14.26500849]
[1758728266432,1e-08,4199.9,4199.8,15.08570849]
[1758728269415,0.001,4200.7,4199.8,15.08570849]
[1758728269416,1e-08,4200.2,4199.9,3.792]
[1758728269615,1e-08,4200.2,4200.1,14.26483842]
[1758728269816,0.001,4200.7,4200.2,3.172839]
[1758728270136,0.001,4200.7,4200.6,6.17261229]
[1758728270498,0.001,4200.7,4200.6,6.41821229]
[1758728270702,0.001,4200.7,4200.6,7.10891229]
[1758728271442,0.4414,4202.0,4201.8,2.3799324]
[1758728271760,0.4414,4202.1,4201.8,2.40373172]
[1758728271965,0.6954,4201.9,4201.8,2.40373172]
[1758728272157,0.6954,4201.9,4201.8,2.3799324]
[1758728273432,0.02,4201.9,4201.8,2.3799324]
[1758728273635,0.02,4201.9,4201.8,2.40373172]
[1758728273936,0.02,4201.9,4201.8,3.10603172]
[1758728274662,0.02,4201.9,4201.8,6.10603172]
[1758728274820,0.02,4201.9,4201.8,6.0822324]
[1758728277331,0.02,4201.9,4201.8,5.3799324]
[1758728277332,0.6954,4201.9,4201.8,5.3799324]
[1758728279728,0.6954,4201.9,4201.8,2.4983324]
[1758728280047,0.6954,4201.9,4201.8,2.3799324]
[1758728280243,0.6954,4201.9,4201.6,2.49843615]
[1758728280244,0.6954,4201.9,4201.6,0.1184]
[1758728280444,0.6954,4201.9,4201.2,2.38026429]
[1758728280644,0.32751112,4201.9,4201.5,2.3800935]
[1758728280855,0.6852,4201.8,4201.6,2.38004154]
[1758728281160,0.6852,4201.7,4201.6,2.38004154]
[1758728281458,0.6852,4201.7,4201.5,2.38005372]
[1758728281643,0.02,4201.9,4201.5,2.38005372]
[1758728281849,0.6852,4201.6,4201.5,2.38005372]
[1758728282053,0.6852,4201.6,4201.0,0.6954]
[1758728282251,0.6852,4201.5,4201.0,0.6954]
[1758728282449,0.2313,4201.4,4201.0,0.6954]
[1758728282780,0.6852,4201.3,4200.2,3.0]
[1758728282924,0.6852,4201.2,4200.8,2.38045924]
[1758728283243,0.6852,4201.1,4200.0,0.2432]
[1758728283558,0.6852,4201.1,4201.0,2.38038562]
[1758728283745,0.6852,4201.1,4200.9,2.38043274]
[1758728283920,0.6852,4201.0,4200.9,2.38043274]
[1758728284354,0.6852,4201.0,4200.2,0.71563264]
[1758728284569,0.2313,4200.9,4200.4,3.0]
[1758728284865,0.6852,4200.9,4200.4,2.38068712]
[1758728285153,0.6852,4200.8,4200.2,0.71563264]
[1758728285330,0.6852,4200.7,4200.3,2.38075854]
[1758728285531,2.38022384,4201.3,4199.8,0.002]
[1758728285532,0.6852,4200.6,4199.8,0.002]
[1758728286121,0.6852,4200.6,4199.9,2.38100337]
[1758728286322,0.6852,4200.5,4199.9,2.38100337]
[1758728286529,0.50886421,4200.9,4199.8,0.002]
[1758728286530,0.99177583,4200.4,4199.8,0.002]
[1758728286761,0.6852,4200.4,4199.8,2.3830608]
[1758728286960,2.38062554,4200.6,4199.8,2.3830608]
[1758728286961,0.6852,4200.3,4199.8,0.002]
[1758728287163,0.6852,4200.3,4200.0,2.38095116]
[1758728287374,0.6852,4200.2,4200.1,2.38089569]
[1758728287860,0.2313,4200.2,4200.1,2.38089569]
[1758728288060,3.0,4201.1,4200.0,0.02380952]